[Event "Betsys MČR v online bleskovém šachu 2021"]
[Site "Chess.com"]
[Date "2021.04.17"]
[Round "1"]
[White "clarissamcclellan"]
[Black "BrunoT2"]
[Result "1-0"]
[WhiteElo "1986"]
[BlackElo "1190"]
[TimeControl "180+1"]
[EndTime "9:09:03 PDT"]
[Termination "Uživatel clarissamcclellan zvítězil matem"]

1. d4 {[%clk 0:02:59.2]} 1... d5 {[%clk 0:02:58.9]} 2. c4 {[%clk 0:02:58]} 2...
e6 {[%clk 0:02:57.3]} 3. Nf3 {[%clk 0:02:54.7]} 3... Nc6 {[%clk 0:02:55.6]} 4.
g3 {[%clk 0:02:54]} 4... Nf6 {[%clk 0:02:53]} 5. Bg2 {[%clk 0:02:53.9]} 5...
Bb4+ {[%clk 0:02:49.1]} 6. Bd2 {[%clk 0:02:53]} 6... Bxd2+ {[%clk 0:02:47.6]} 7.
Nbxd2 {[%clk 0:02:52.4]} 7... O-O {[%clk 0:02:45.6]} 8. O-O {[%clk 0:02:51.4]}
8... b6 {[%clk 0:02:41.6]} 9. Rc1 {[%clk 0:02:46.1]} 9... Bb7 {[%clk 0:02:25.7]}
10. a3 {[%clk 0:02:29.7]} 10... a5 {[%clk 0:02:14.8]} 11. cxd5 {[%clk
0:02:26.7]} 11... Nxd5 {[%clk 0:02:09.1]} 12. Re1 {[%clk 0:02:09.9]} 12... Re8
{[%clk 0:02:03.7]} 13. e4 {[%clk 0:02:09]} 13... Nde7 {[%clk 0:01:59.6]} 14. Nc4
{[%clk 0:02:00.3]} 14... Ba6 {[%clk 0:01:54.5]} 15. Qd2 {[%clk 0:01:50.1]} 15...
Bxc4 {[%clk 0:01:50.5]} 16. Rxc4 {[%clk 0:01:49.4]} 16... Na7 {[%clk 0:01:44.4]}
17. Rec1 {[%clk 0:01:44.8]} 17... Rc8 {[%clk 0:01:38.5]} 18. Qc2 {[%clk
0:01:29.9]} 18... c6 {[%clk 0:01:27.1]} 19. Rd1 {[%clk 0:01:11.4]} 19... b5
{[%clk 0:01:21.6]} 20. Rc3 {[%clk 0:01:10.4]} 20... a4 {[%clk 0:01:20]} 21. Ne5
{[%clk 0:01:03.1]} 21... f6 {[%clk 0:01:05.4]} 22. Nf3 {[%clk 0:01:01.3]} 22...
Qb6 {[%clk 0:00:52.6]} 23. Bh3 {[%clk 0:00:47.1]} 23... Kf7 {[%clk 0:00:41.7]}
24. d5 {[%clk 0:00:44.5]} 24... cxd5 {[%clk 0:00:34]} 25. exd5 {[%clk
0:00:42.5]} 25... Rxc3 {[%clk 0:00:27.4]} 26. bxc3 {[%clk 0:00:36.2]} 26... exd5
{[%clk 0:00:25.4]} 27. Re1 {[%clk 0:00:31.4]} 27... Nec6 {[%clk 0:00:20.9]} 28.
Rxe8 {[%clk 0:00:29.4]} 28... Kxe8 {[%clk 0:00:21.5]} 29. Qxh7 {[%clk 0:00:28]}
29... Kf7 {[%clk 0:00:21.4]} 30. Qh5+ {[%clk 0:00:25.7]} 30... Kf8 {[%clk
0:00:18.4]} 31. Qxd5 {[%clk 0:00:22.3]} 31... Qd8 {[%clk 0:00:15.1]} 32. Qxd8+
{[%clk 0:00:19.4]} 32... Nxd8 {[%clk 0:00:15.5]} 33. Nd4 {[%clk 0:00:19.5]}
33... Ndc6 {[%clk 0:00:15.4]} 34. Nxc6 {[%clk 0:00:18.8]} 34... Nxc6 {[%clk
0:00:16.3]} 35. Bd7 {[%clk 0:00:18.6]} 35... Ne5 {[%clk 0:00:16.5]} 36. Bxb5
{[%clk 0:00:17.6]} 36... Nc4 {[%clk 0:00:17.3]} 37. Bxc4 {[%clk 0:00:17.2]}
37... Ke7 {[%clk 0:00:17.6]} 38. Bb5 {[%clk 0:00:17.5]} 38... Kd6 {[%clk
0:00:18]} 39. Bxa4 {[%clk 0:00:18.4]} 39... Kc5 {[%clk 0:00:18]} 40. Bb3 {[%clk
0:00:18.5]} 40... Kb6 {[%clk 0:00:17.6]} 41. f3 {[%clk 0:00:18.7]} 41... Ka6
{[%clk 0:00:17.8]} 42. Kg2 {[%clk 0:00:18.3]} 42... Kb6 {[%clk 0:00:18.2]} 43.
h4 {[%clk 0:00:18.8]} 43... Kc6 {[%clk 0:00:18.1]} 44. g4 {[%clk 0:00:19.7]}
44... Kb6 {[%clk 0:00:16.3]} 45. Kg3 {[%clk 0:00:20.5]} 45... Ka6 {[%clk
0:00:16.6]} 46. h5 {[%clk 0:00:20.8]} 46... Kb6 {[%clk 0:00:17.5]} 47. Kh4
{[%clk 0:00:21.4]} 47... Kc6 {[%clk 0:00:17.7]} 48. g5 {[%clk 0:00:22]} 48...
fxg5+ {[%clk 0:00:16.3]} 49. Kxg5 {[%clk 0:00:22.9]} 49... Kd7 {[%clk
0:00:16.4]} 50. Kg6 {[%clk 0:00:23.2]} 50... Ke7 {[%clk 0:00:15.7]} 51. Kxg7
{[%clk 0:00:24.1]} 51... Kd6 {[%clk 0:00:16.5]} 52. h6 {[%clk 0:00:25]} 52...
Kc6 {[%clk 0:00:17.4]} 53. h7 {[%clk 0:00:25.8]} 53... Kb6 {[%clk 0:00:18.3]}
54. h8=Q {[%clk 0:00:26.3]} 54... Kb7 {[%clk 0:00:19.2]} 55. Qd8 {[%clk
0:00:26]} 55... Kc6 {[%clk 0:00:20.1]} 56. Qd5+ {[%clk 0:00:25.8]} 56... Kb6
{[%clk 0:00:19.1]} 57. Qd4+ {[%clk 0:00:25.5]} 57... Ka6 {[%clk 0:00:19.1]} 58.
Bc4+ {[%clk 0:00:25.7]} 58... Kb7 {[%clk 0:00:19.2]} 59. Qd5+ {[%clk 0:00:25.3]}
59... Kb8 {[%clk 0:00:19.5]} 60. Qd6+ {[%clk 0:00:25]} 60... Kb7 {[%clk
0:00:19.1]} 61. Bd5+ {[%clk 0:00:25.1]} 61... Kc8 {[%clk 0:00:16.5]} 62. Be6+
{[%clk 0:00:24.2]} 62... Kb7 {[%clk 0:00:15.4]} 63. a4 {[%clk 0:00:24]} 63...
Ka8 {[%clk 0:00:12.6]} 64. a5 {[%clk 0:00:23.5]} 64... Kb7 {[%clk 0:00:12.4]}
65. Qb6+ {[%clk 0:00:23.4]} 65... Ka8 {[%clk 0:00:10.6]} 66. Bd5# {[%clk
0:00:23.3]} 1-0

[Event "Betsys MČR v online bleskovém šachu 2021"]
[Site "Chess.com"]
[Date "2021.04.17"]
[Round "1"]
[White "JaraLinhart"]
[Black "Petroniuss"]
[Result "0-1"]
[WhiteElo "1677"]
[BlackElo "2328"]
[TimeControl "180+1"]
[EndTime "9:09:06 PDT"]
[Termination "Uživatel Petroniuss zvítězil na čas"]

1. e4 {[%clk 0:02:59.3]} 1... c5 {[%clk 0:02:59.3]} 2. Nf3 {[%clk 0:02:55.3]}
2... a6 {[%clk 0:02:58.8]} 3. c3 {[%clk 0:02:55.4]} 3... e6 {[%clk 0:02:59]} 4.
d4 {[%clk 0:02:55.4]} 4... d5 {[%clk 0:02:59.6]} 5. exd5 {[%clk 0:02:53.2]} 5...
exd5 {[%clk 0:03:00.5]} 6. Be2 {[%clk 0:02:52.6]} 6... Nc6 {[%clk 0:03:00.6]} 7.
O-O {[%clk 0:02:52.5]} 7... Bd6 {[%clk 0:03:00.8]} 8. Be3 {[%clk 0:02:39.7]}
8... c4 {[%clk 0:02:59.5]} 9. Nbd2 {[%clk 0:02:37.9]} 9... Nge7 {[%clk
0:02:58.4]} 10. b3 {[%clk 0:02:33.4]} 10... b5 {[%clk 0:02:57.7]} 11. a4 {[%clk
0:02:33.3]} 11... Bf5 {[%clk 0:02:51.1]} 12. Nh4 {[%clk 0:02:04.7]} 12... Bg6
{[%clk 0:02:46]} 13. Nxg6 {[%clk 0:01:55.2]} 13... hxg6 {[%clk 0:02:46.9]} 14.
h3 {[%clk 0:01:52.3]} 14... O-O {[%clk 0:02:42.4]} 15. Bf3 {[%clk 0:01:46.5]}
15... Qc7 {[%clk 0:02:37.2]} 16. Qc2 {[%clk 0:01:31.9]} 16... Bf4 {[%clk
0:02:08.8]} 17. Qa2 {[%clk 0:01:21.7]} 17... Bxe3 {[%clk 0:01:58.9]} 18. fxe3
{[%clk 0:01:21.2]} 18... Nf5 {[%clk 0:01:59]} 19. Bxd5 {[%clk 0:01:16.7]} 19...
Nxe3 {[%clk 0:01:54.3]} 20. Bxc6 {[%clk 0:01:15.6]} 20... Qxc6 {[%clk
0:01:55.2]} 21. Rf2 {[%clk 0:01:15]} 21... cxb3 {[%clk 0:01:33.8]} 22. Qxb3
{[%clk 0:01:13.5]} 22... Nc4 {[%clk 0:01:27.1]} 23. Nxc4 {[%clk 0:00:55.3]}
23... bxc4 {[%clk 0:01:28]} 24. Qd1 {[%clk 0:00:45.9]} 24... f5 {[%clk
0:01:19.5]} 25. Qf3 {[%clk 0:00:42.7]} 25... Qxf3 {[%clk 0:01:13.6]} 26. Rxf3
{[%clk 0:00:42.1]} 26... Rab8 {[%clk 0:01:14]} 27. Rg3 {[%clk 0:00:40]} 27...
Kf7 {[%clk 0:01:13.4]} 28. Re1 {[%clk 0:00:38.6]} 28... Rfe8 {[%clk 0:01:08.5]}
29. Rge3 {[%clk 0:00:37.7]} 29... Rxe3 {[%clk 0:01:07.4]} 30. Rxe3 {[%clk
0:00:37.7]} 30... Rb2 {[%clk 0:00:53]} 31. Re5 {[%clk 0:00:25.9]} 31... Rc2
{[%clk 0:00:43.6]} 32. Ra5 {[%clk 0:00:24.9]} 32... Rxc3 {[%clk 0:00:43.9]} 33.
Rxa6 {[%clk 0:00:24.9]} 33... Rd3 {[%clk 0:00:44.3]} 34. Rd6 {[%clk 0:00:20.1]}
34... c3 {[%clk 0:00:44.3]} 35. Rc6 {[%clk 0:00:19.2]} 35... Rxd4 {[%clk
0:00:43.6]} 36. Rxc3 {[%clk 0:00:18.7]} 36... Rxa4 {[%clk 0:00:44.1]} 37. Rf3
{[%clk 0:00:16.8]} 37... Kf6 {[%clk 0:00:44.3]} 38. Kh2 {[%clk 0:00:16.2]} 38...
Ra2 {[%clk 0:00:44.4]} 39. Kg3 {[%clk 0:00:15.7]} 39... g5 {[%clk 0:00:44.5]}
40. Rb3 {[%clk 0:00:15.6]} 40... Ra6 {[%clk 0:00:44.2]} 41. Rb7 {[%clk
0:00:13.8]} 41... Re6 {[%clk 0:00:44.1]} 42. Rb5 {[%clk 0:00:12.4]} 42... g6
{[%clk 0:00:44.3]} 43. h4 {[%clk 0:00:11.3]} 43... gxh4+ {[%clk 0:00:29.7]} 44.
Kxh4 {[%clk 0:00:10.8]} 44... Re4+ {[%clk 0:00:30.6]} 45. Kg3 {[%clk 0:00:09.6]}
45... Kg5 {[%clk 0:00:30.6]} 46. Rb6 {[%clk 0:00:08.8]} 46... Re3+ {[%clk
0:00:30.8]} 47. Kf2 {[%clk 0:00:08.6]} 47... Rc3 {[%clk 0:00:31.2]} 48. Rd6
{[%clk 0:00:07.9]} 48... Rc8 {[%clk 0:00:29.6]} 49. Rb6 {[%clk 0:00:07.7]} 49...
Rf8 {[%clk 0:00:29.8]} 50. Rd6 {[%clk 0:00:06.9]} 50... Rf6 {[%clk 0:00:29.9]}
51. Rd7 {[%clk 0:00:06.5]} 51... Ra6 {[%clk 0:00:25.9]} 52. Kf3 {[%clk
0:00:04.9]} 52... Ra3+ {[%clk 0:00:24.3]} 53. Kf2 {[%clk 0:00:04.7]} 53... Kg4
{[%clk 0:00:23.8]} 54. Rd6 {[%clk 0:00:04.6]} 54... Ra2+ {[%clk 0:00:22.7]} 55.
Kf1 {[%clk 0:00:02.6]} 55... g5 {[%clk 0:00:23.3]} 56. Rd4+ {[%clk 0:00:02.2]}
56... f4 {[%clk 0:00:23.9]} 57. Rd3 {[%clk 0:00:01.7]} 57... Ra5 {[%clk
0:00:17.9]} 58. Rb3 {[%clk 0:00:01.6]} 58... Re5 {[%clk 0:00:18.3]} 59. Rf3
{[%clk 0:00:01.4]} 59... Re3 {[%clk 0:00:15.4]} 0-1

[Event "Betsys MČR v online bleskovém šachu 2021"]
[Site "Chess.com"]
[Date "2021.04.17"]
[Round "1"]
[White "Sunnika"]
[Black "mendryxchess"]
[Result "0-1"]
[WhiteElo "2314"]
[BlackElo "1738"]
[TimeControl "180+1"]
[EndTime "9:09:08 PDT"]
[Termination "Uživatel mendryxchess zvítězil po vzdání soupeře"]

1. d4 {[%clk 0:03:00.6]} 1... Nf6 {[%clk 0:02:59.3]} 2. Nf3 {[%clk 0:02:59.8]}
2... e6 {[%clk 0:02:59.3]} 3. Bf4 {[%clk 0:02:57.6]} 3... d5 {[%clk 0:02:59]} 4.
e3 {[%clk 0:02:57.6]} 4... c5 {[%clk 0:02:58.8]} 5. Nbd2 {[%clk 0:02:57.1]} 5...
Nc6 {[%clk 0:02:58.9]} 6. c3 {[%clk 0:02:56.8]} 6... Bd6 {[%clk 0:02:59.3]} 7.
Bg3 {[%clk 0:02:56.7]} 7... O-O {[%clk 0:02:58.3]} 8. Bd3 {[%clk 0:02:55.8]}
8... Re8 {[%clk 0:02:58.2]} 9. Ne5 {[%clk 0:02:48.5]} 9... Bxe5 {[%clk
0:02:57.7]} 10. dxe5 {[%clk 0:02:48.2]} 10... Nd7 {[%clk 0:02:57.2]} 11. f4
{[%clk 0:02:25.8]} 11... c4 {[%clk 0:02:56.2]} 12. Bc2 {[%clk 0:02:24.6]} 12...
Qb6 {[%clk 0:02:55.9]} 13. O-O {[%clk 0:01:57.5]} 13... Qxb2 {[%clk 0:02:55.2]}
14. Rc1 {[%clk 0:01:57.1]} 14... g6 {[%clk 0:02:52.2]} 15. e4 {[%clk 0:01:52.9]}
15... Nb6 {[%clk 0:02:30.8]} 16. Nf3 {[%clk 0:01:33.6]} 16... Qxc3 {[%clk
0:02:07.3]} 17. exd5 {[%clk 0:01:10.9]} 17... exd5 {[%clk 0:02:06.4]} 18. Bxg6
{[%clk 0:01:08]} 18... Qa3 {[%clk 0:01:57.7]} 19. Bb1 {[%clk 0:00:31.3]} 19...
Bg4 {[%clk 0:01:52]} 20. Qc2 {[%clk 0:00:30.7]} 20... Qe3+ {[%clk 0:01:26.3]}
21. Qf2 {[%clk 0:00:31]} 21... Qxf2+ {[%clk 0:01:25.4]} 22. Rxf2 {[%clk
0:00:22.4]} 22... d4 {[%clk 0:01:23.1]} 23. Be4 {[%clk 0:00:19]} 23... Red8
{[%clk 0:01:08.8]} 24. Ng5 {[%clk 0:00:18.7]} 24... h6 {[%clk 0:01:06.3]} 25.
Nh7 {[%clk 0:00:18.4]} 25... Be6 {[%clk 0:00:59.5]} 26. Nf6+ {[%clk 0:00:18.2]}
26... Kg7 {[%clk 0:00:59.4]} 27. f5 {[%clk 0:00:17.5]} 27... Bd5 {[%clk
0:00:56.2]} 28. Nxd5 {[%clk 0:00:11.7]} 28... Nxd5 {[%clk 0:00:57.1]} 29. Rxc4
{[%clk 0:00:10.5]} 29... Ne3 {[%clk 0:00:53]} 30. Rc1 {[%clk 0:00:08.5]} 30...
Rac8 {[%clk 0:00:50.7]} 31. f6+ {[%clk 0:00:07.8]} 31... Kf8 {[%clk 0:00:48.8]}
32. Bf4 {[%clk 0:00:07.4]} 32... h5 {[%clk 0:00:45.3]} 33. Bh6+ {[%clk 0:00:07]}
33... Ke8 {[%clk 0:00:43.2]} 34. e6 {[%clk 0:00:07.9]} 34... Ne5 {[%clk
0:00:29]} 35. Rxc8 {[%clk 0:00:06.2]} 35... Rxc8 {[%clk 0:00:29.9]} 36. exf7+
{[%clk 0:00:04.8]} 36... Kxf7 {[%clk 0:00:29.7]} 37. h3 {[%clk 0:00:03.2]} 37...
Rc1+ {[%clk 0:00:28.3]} 38. Kh2 {[%clk 0:00:03.1]} 38... Nf1+ {[%clk 0:00:22.5]}
39. Rxf1 {[%clk 0:00:03.4]} 39... Rxf1 {[%clk 0:00:23.3]} 40. Bg5 {[%clk
0:00:04.1]} 40... d3 {[%clk 0:00:21.4]} 41. Bd5+ {[%clk 0:00:04.5]} 41... Ke8
{[%clk 0:00:19.5]} 42. f7+ {[%clk 0:00:05.4]} 42... Nxf7 {[%clk 0:00:19]} 43.
Bc4 {[%clk 0:00:05.2]} 43... Rd1 {[%clk 0:00:17.7]} 44. Kg3 {[%clk 0:00:04.4]}
44... Nxg5 {[%clk 0:00:16.5]} 45. Kf2 {[%clk 0:00:03.6]} 45... Ne4+ {[%clk
0:00:16.5]} 46. Ke3 {[%clk 0:00:03.9]} 46... Nc5 {[%clk 0:00:15.6]} 47. Kd4
{[%clk 0:00:04]} 47... Nd7 {[%clk 0:00:15.6]} 48. Bxd3 {[%clk 0:00:03.9]} 48...
Rxd3+ {[%clk 0:00:14.9]} 49. Kxd3 {[%clk 0:00:04.1]} 49... Ke7 {[%clk
0:00:15.6]} 50. Ke4 {[%clk 0:00:04.4]} 50... Ke6 {[%clk 0:00:16.2]} 51. Kf4
{[%clk 0:00:04.5]} 51... Kf6 {[%clk 0:00:14.5]} 52. g4 {[%clk 0:00:04.7]} 52...
hxg4 {[%clk 0:00:14.5]} 53. Kxg4 {[%clk 0:00:05.6]} 53... b5 {[%clk 0:00:13.8]}
54. h4 {[%clk 0:00:05.7]} 54... a5 {[%clk 0:00:13.7]} 55. Kf4 {[%clk 0:00:06]}
55... b4 {[%clk 0:00:13.1]} 56. Ke3 {[%clk 0:00:06.1]} 56... a4 {[%clk
0:00:12.4]} 57. Kd3 {[%clk 0:00:05.3]} 57... Nb6 {[%clk 0:00:12.3]} 58. Kd4
{[%clk 0:00:03.9]} 58... Kf5 {[%clk 0:00:11.5]} 59. h5 {[%clk 0:00:03.3]} 59...
Kg5 {[%clk 0:00:11.6]} 60. Kc5 {[%clk 0:00:03.5]} 60... b3 {[%clk 0:00:10.8]}
61. axb3 {[%clk 0:00:02.8]} 61... axb3 {[%clk 0:00:11.7]} 62. Kxb6 {[%clk
0:00:03.4]} 62... Kxh5 {[%clk 0:00:11.1]} 63. Kc5 {[%clk 0:00:04.3]} 63... b2
{[%clk 0:00:11.6]} 64. Kd4 {[%clk 0:00:05.2]} 64... b1=Q {[%clk 0:00:12]} 0-1

[Event "Betsys MČR v online bleskovém šachu 2021"]
[Site "Chess.com"]
[Date "2021.04.17"]
[Round "1"]
[White "sachistamartin"]
[Black "PremetFugas"]
[Result "0-1"]
[WhiteElo "1449"]
[BlackElo "2112"]
[TimeControl "180+1"]
[EndTime "9:09:14 PDT"]
[Termination "Uživatel PremetFugas zvítězil matem"]

1. c4 {[%clk 0:02:58.8]} 1... e5 {[%clk 0:02:58.8]} 2. Nc3 {[%clk 0:02:57.9]}
2... Bb4 {[%clk 0:02:57.5]} 3. Nf3 {[%clk 0:02:56.9]} 3... Nc6 {[%clk
0:02:54.4]} 4. d3 {[%clk 0:02:51.2]} 4... Nf6 {[%clk 0:02:51]} 5. Bd2 {[%clk
0:02:49.9]} 5... O-O {[%clk 0:02:50]} 6. g3 {[%clk 0:02:44]} 6... d6 {[%clk
0:02:48.1]} 7. Bg2 {[%clk 0:02:42.2]} 7... h6 {[%clk 0:02:45.5]} 8. a3 {[%clk
0:02:40.4]} 8... Ba5 {[%clk 0:02:37.4]} 9. b4 {[%clk 0:02:39]} 9... Bb6 {[%clk
0:02:37.1]} 10. O-O {[%clk 0:02:36.7]} 10... Be6 {[%clk 0:02:33.7]} 11. Rc1
{[%clk 0:02:26]} 11... a5 {[%clk 0:02:29.2]} 12. b5 {[%clk 0:02:19.5]} 12... Ne7
{[%clk 0:02:22.8]} 13. Ne1 {[%clk 0:02:11.2]} 13... c6 {[%clk 0:02:20.1]} 14. a4
{[%clk 0:02:07]} 14... d5 {[%clk 0:02:15.9]} 15. Qc2 {[%clk 0:01:52.8]} 15...
dxc4 {[%clk 0:02:08.9]} 16. Ne4 {[%clk 0:01:41.6]} 16... Nxe4 {[%clk 0:01:57.5]}
17. Bxe4 {[%clk 0:01:38.2]} 17... f5 {[%clk 0:01:56.3]} 18. Bg2 {[%clk
0:01:34.9]} 18... cxd3 {[%clk 0:01:45.5]} 19. Nxd3 {[%clk 0:01:33.7]} 19... Qd6
{[%clk 0:01:33.2]} 20. Rfd1 {[%clk 0:01:31]} 20... Rac8 {[%clk 0:01:23.7]} 21.
Qc3 {[%clk 0:01:28.5]} 21... e4 {[%clk 0:01:07.6]} 22. Nf4 {[%clk 0:01:17.5]}
22... Nd5 {[%clk 0:01:05.1]} 23. Nxd5 {[%clk 0:01:15.2]} 23... cxd5 {[%clk
0:01:03]} 24. Bf4 {[%clk 0:01:12.7]} 24... Qd7 {[%clk 0:00:48.1]} 25. Qe5 {[%clk
0:01:05.5]} 25... g5 {[%clk 0:00:42.8]} 26. Bd2 {[%clk 0:01:00.1]} 26... Bc7
{[%clk 0:00:37.4]} 27. Qd4 {[%clk 0:00:57]} 27... Qg7 {[%clk 0:00:34.9]} 28. Bc3
{[%clk 0:00:55.1]} 28... Qxd4 {[%clk 0:00:33.6]} 29. Bxd4 {[%clk 0:00:53.7]}
29... Bd6 {[%clk 0:00:32]} 30. e3 {[%clk 0:00:50.6]} 30... Rxc1 {[%clk
0:00:29.7]} 31. Rxc1 {[%clk 0:00:50.1]} 31... Rc8 {[%clk 0:00:29.6]} 32. Rxc8+
{[%clk 0:00:48.8]} 32... Bxc8 {[%clk 0:00:29.2]} 33. f3 {[%clk 0:00:47.7]} 33...
Kf7 {[%clk 0:00:27.6]} 34. Kf2 {[%clk 0:00:46.2]} 34... Bb4 {[%clk 0:00:26.4]}
35. f4 {[%clk 0:00:42.3]} 35... gxf4 {[%clk 0:00:24]} 36. gxf4 {[%clk
0:00:41.6]} 36... Bd7 {[%clk 0:00:22.7]} 37. Ke2 {[%clk 0:00:41.5]} 37... Ke6
{[%clk 0:00:19.8]} 38. h4 {[%clk 0:00:41.2]} 38... Be8 {[%clk 0:00:19.4]} 39.
Bg7 {[%clk 0:00:40.5]} 39... Be7 {[%clk 0:00:10]} 40. Be5 {[%clk 0:00:38.5]}
40... Bxh4 {[%clk 0:00:09.4]} 41. Bh3 {[%clk 0:00:38.5]} 41... Bh5+ {[%clk
0:00:08.6]} 42. Kd2 {[%clk 0:00:37.6]} 42... Bd8 {[%clk 0:00:08.5]} 43. Bg7
{[%clk 0:00:37.1]} 43... Bg4 {[%clk 0:00:04.7]} 44. Bf1 {[%clk 0:00:35]} 44...
h5 {[%clk 0:00:04.4]} 45. Kc3 {[%clk 0:00:32]} 45... h4 {[%clk 0:00:04.5]} 46.
Kd4 {[%clk 0:00:30.1]} 46... Bb6+ {[%clk 0:00:04.6]} 47. Kc3 {[%clk 0:00:28.8]}
47... Bxe3 {[%clk 0:00:04.7]} 48. Bg2 {[%clk 0:00:23.3]} 48... h3 {[%clk
0:00:04.6]} 49. Bxh3 {[%clk 0:00:23]} 49... Bxh3 {[%clk 0:00:04.5]} 50. Kc2
{[%clk 0:00:23.9]} 50... Bg2 {[%clk 0:00:04.5]} 51. Kd1 {[%clk 0:00:22.8]} 51...
Bxf4 {[%clk 0:00:04.8]} 52. Ke2 {[%clk 0:00:22.7]} 52... Bf3+ {[%clk 0:00:05.2]}
53. Kf2 {[%clk 0:00:22.4]} 53... Bg4 {[%clk 0:00:05.2]} 54. Bd4 {[%clk
0:00:21.5]} 54... e3+ {[%clk 0:00:05.4]} 55. Bxe3 {[%clk 0:00:20.7]} 55... Bxe3+
{[%clk 0:00:05.8]} 56. Kxe3 {[%clk 0:00:20.4]} 56... Bd1 {[%clk 0:00:05.8]} 57.
Kd4 {[%clk 0:00:21.3]} 57... Bxa4 {[%clk 0:00:05.8]} 58. Kc5 {[%clk 0:00:22.2]}
58... Bxb5 {[%clk 0:00:06.1]} 59. Kb6 {[%clk 0:00:23.1]} 59... f4 {[%clk
0:00:06.5]} 60. Kxb5 {[%clk 0:00:24]} 60... f3 {[%clk 0:00:07]} 61. Kxa5 {[%clk
0:00:24.9]} 61... f2 {[%clk 0:00:07.5]} 62. Kb6 {[%clk 0:00:25.8]} 62... f1=Q
{[%clk 0:00:07.7]} 63. Kxb7 {[%clk 0:00:26.6]} 63... Qc1 {[%clk 0:00:07.9]} 64.
Kb6 {[%clk 0:00:25.9]} 64... d4 {[%clk 0:00:08.3]} 65. Kb5 {[%clk 0:00:25.3]}
65... d3 {[%clk 0:00:08.8]} 66. Kb4 {[%clk 0:00:24.9]} 66... Qc2 {[%clk
0:00:09]} 67. Kb5 {[%clk 0:00:24.3]} 67... d2 {[%clk 0:00:09.4]} 68. Kb6 {[%clk
0:00:24]} 68... d1=Q {[%clk 0:00:09.6]} 69. Kb7 {[%clk 0:00:23.5]} 69... Qdb1+
{[%clk 0:00:09.8]} 70. Ka6 {[%clk 0:00:23]} 70... Qca2# {[%clk 0:00:10]} 0-1

[Event "Betsys MČR v online bleskovém šachu 2021"]
[Site "Chess.com"]
[Date "2021.04.17"]
[Round "1"]
[White "BRNOTEACHER"]
[Black "Koli05"]
[Result "1-0"]
[WhiteElo "2373"]
[BlackElo "1726"]
[TimeControl "180+1"]
[EndTime "9:09:22 PDT"]
[Termination "Uživatel BRNOTEACHER zvítězil na čas"]

1. d4 {[%clk 0:03:00.9]} 1... d5 {[%clk 0:02:57.6]} 2. c4 {[%clk 0:03:00.9]}
2... e6 {[%clk 0:02:57.1]} 3. Nc3 {[%clk 0:02:59.9]} 3... c5 {[%clk 0:02:56.5]}
4. cxd5 {[%clk 0:02:58]} 4... exd5 {[%clk 0:02:55.9]} 5. Nf3 {[%clk 0:02:56.4]}
5... Nc6 {[%clk 0:02:53.7]} 6. g3 {[%clk 0:02:54.9]} 6... Nf6 {[%clk 0:02:52.5]}
7. Bg2 {[%clk 0:02:53.9]} 7... cxd4 {[%clk 0:02:52.4]} 8. Nxd4 {[%clk
0:02:53.3]} 8... Bc5 {[%clk 0:02:52]} 9. Nb3 {[%clk 0:02:32]} 9... Bb6 {[%clk
0:02:51.3]} 10. O-O {[%clk 0:02:12]} 10... O-O {[%clk 0:02:49]} 11. Nxd5 {[%clk
0:02:09.2]} 11... Nxd5 {[%clk 0:02:46.6]} 12. Qxd5 {[%clk 0:02:02.8]} 12... Qxd5
{[%clk 0:02:45.7]} 13. Bxd5 {[%clk 0:02:01.7]} 13... Bh3 {[%clk 0:02:44.9]} 14.
Bg2 {[%clk 0:01:59.5]} 14... Bg4 {[%clk 0:02:44.3]} 15. e3 {[%clk 0:01:52.4]}
15... a5 {[%clk 0:02:36.5]} 16. Nd2 {[%clk 0:01:47.7]} 16... Rad8 {[%clk
0:02:13.2]} 17. h3 {[%clk 0:01:39.3]} 17... Bh5 {[%clk 0:02:10.1]} 18. b3 {[%clk
0:01:18.6]} 18... Nb4 {[%clk 0:02:08.5]} 19. Nc4 {[%clk 0:01:07.5]} 19... Nc2
{[%clk 0:01:55.6]} 20. Nxb6 {[%clk 0:00:59.1]} 20... Nxa1 {[%clk 0:01:54.8]} 21.
Ba3 {[%clk 0:00:59]} 21... Nc2 {[%clk 0:01:37.7]} 22. Bxf8 {[%clk 0:00:57.1]}
22... Kxf8 {[%clk 0:01:33.9]} 23. Bxb7 {[%clk 0:00:52.6]} 23... Nb4 {[%clk
0:01:19.8]} 24. a3 {[%clk 0:00:46]} 24... Nc2 {[%clk 0:01:18.1]} 25. Nc4 {[%clk
0:00:44.8]} 25... Be2 {[%clk 0:01:16.2]} 26. Rc1 {[%clk 0:00:43]} 26... Bxc4
{[%clk 0:01:10.1]} 27. Rxc2 {[%clk 0:00:42.3]} 27... Bxb3 {[%clk 0:01:08.9]} 28.
Rc8 {[%clk 0:00:42]} 28... Rxc8 {[%clk 0:01:04.2]} 29. Bxc8 {[%clk 0:00:42.9]}
29... Ke7 {[%clk 0:01:04.5]} 30. Kf1 {[%clk 0:00:42.8]} 30... Kd6 {[%clk
0:01:03.9]} 31. Ke2 {[%clk 0:00:42.8]} 31... Kc5 {[%clk 0:01:03.8]} 32. Kd3
{[%clk 0:00:42.6]} 32... Bd1 {[%clk 0:00:55.1]} 33. e4 {[%clk 0:00:35.4]} 33...
Ba4 {[%clk 0:00:53.1]} 34. f4 {[%clk 0:00:33]} 34... Bc6 {[%clk 0:00:52.1]} 35.
Bg4 {[%clk 0:00:30.1]} 35... Kb5 {[%clk 0:00:50.6]} 36. Bd1 {[%clk 0:00:26.9]}
36... Kc5 {[%clk 0:00:46.4]} 37. h4 {[%clk 0:00:23]} 37... Bb5+ {[%clk
0:00:46.1]} 38. Kc3 {[%clk 0:00:22]} 38... Bc6 {[%clk 0:00:45.7]} 39. Bb3 {[%clk
0:00:19.9]} 39... Bxe4 {[%clk 0:00:43.3]} 40. Bxf7 {[%clk 0:00:19.4]} 40... Bf5
{[%clk 0:00:43]} 41. Be8 {[%clk 0:00:15.9]} 41... Be6 {[%clk 0:00:39.9]} 42. Bh5
{[%clk 0:00:15.5]} 42... Bf5 {[%clk 0:00:38.5]} 43. Bf3 {[%clk 0:00:15]} 43...
Be6 {[%clk 0:00:38.2]} 44. g4 {[%clk 0:00:15.1]} 44... h6 {[%clk 0:00:35.6]} 45.
f5 {[%clk 0:00:13]} 45... Bf7 {[%clk 0:00:34]} 46. Be4 {[%clk 0:00:11.7]} 46...
Be8 {[%clk 0:00:30.7]} 47. g5 {[%clk 0:00:11.4]} 47... hxg5 {[%clk 0:00:28.1]}
48. hxg5 {[%clk 0:00:12.3]} 48... Bf7 {[%clk 0:00:24.9]} 49. Bc2 {[%clk
0:00:12.2]} 49... Bd5 {[%clk 0:00:17.9]} 50. Bb3 {[%clk 0:00:10.6]} 50... Be4
{[%clk 0:00:11.1]} 51. f6 {[%clk 0:00:09.7]} 51... gxf6 {[%clk 0:00:10.6]} 52.
gxf6 {[%clk 0:00:10.6]} 52... Bg6 {[%clk 0:00:10.1]} 53. f7 {[%clk 0:00:09.7]}
53... Bxf7 {[%clk 0:00:09.8]} 54. Bxf7 {[%clk 0:00:10.6]} 54... Kb5 {[%clk
0:00:09.3]} 55. Be8+ {[%clk 0:00:11.2]} 55... Kc5 {[%clk 0:00:08.1]} 56. Kb3
{[%clk 0:00:12.1]} 56... Kb6 {[%clk 0:00:05.2]} 57. Ka4 {[%clk 0:00:13]} 57...
Ka6 {[%clk 0:00:04.3]} 58. Bh5 {[%clk 0:00:13.9]} 58... Kb6 {[%clk 0:00:04.5]}
59. Be2 {[%clk 0:00:14.8]} 59... Kc5 {[%clk 0:00:04.3]} 60. Bf1 {[%clk
0:00:15.7]} 60... Kc6 {[%clk 0:00:04.5]} 61. Kxa5 {[%clk 0:00:16.6]} 61... Kb7
{[%clk 0:00:05]} 62. a4 {[%clk 0:00:17.5]} 62... Ka7 {[%clk 0:00:05.7]} 63. Be2
{[%clk 0:00:18.4]} 63... Kb8 {[%clk 0:00:04.7]} 64. Kb5 {[%clk 0:00:19.3]} 64...
Kb7 {[%clk 0:00:04.4]} 65. a5 {[%clk 0:00:20.2]} 65... Ka7 {[%clk 0:00:04.5]}
66. a6 {[%clk 0:00:21.1]} 66... Kb8 {[%clk 0:00:04.2]} 67. Ka5 {[%clk 0:00:22]}
67... Ka7 {[%clk 0:00:03.9]} 68. Bf3 {[%clk 0:00:22.9]} 68... Kb8 {[%clk
0:00:03.6]} 69. Kb6 {[%clk 0:00:21.8]} 69... Kc8 {[%clk 0:00:03.1]} 70. a7
{[%clk 0:00:21.8]} 1-0